bitfinex-derivatives/quotes_SOLF0:USTF0_20240908
["timestamp","ask_amount","ask_price","bid_price","bid_amount"]
[1725795441313,27.7730485,130.61,130.48,1.277]
[1725795455922,27.7730485,130.61,130.47,2.7445]
[1725795456232,0.2815855,130.6,130.43,2.619]
[1725795457027,1.0,130.59,130.43,1.2724]
[1725795457229,0.2815855,130.58,130.43,1.2724]
[1725795457517,2.8506855,130.58,130.43,1.2724]
[1725795457722,2.5691,130.58,130.43,1.2724]
[1725795457924,1.0,130.57,130.43,1.2724]
[1725795464939,1.0,130.57,130.41,1.3014]
[1725795465425,1.0,130.57,130.42,1.3636]
[1725795465624,1.0,130.57,130.42,6.4525782]
[1725795465838,1.0,130.57,130.42,2.6472]
[1725795467136,1.0,130.57,130.42,6.44452895]
[1725795468250,1.0,130.57,130.42,2.6472]
[1725795468941,1.0,130.57,130.42,1.3636]
[1725795469635,0.28169587,130.56,130.42,1.3636]
[1725795470235,1.0,130.55,130.42,1.3636]
[1725795470435,23.99,130.55,130.42,1.3636]
[1725795478147,23.99,130.55,130.41,1.3014]
[1725795479949,23.99,130.55,130.42,3.92334227]
[1725795482442,23.99,130.55,130.38,1.3583]
[1725795482650,23.99,130.55,130.39,1.4084797]
[1725795483256,23.99,130.55,130.38,1.3583]
[1725795483450,23.99,130.55,130.39,1.40847928]
[1725795487448,23.99,130.55,130.4,1.40831524]
[1725795495155,23.99,130.55,130.38,1.3583]
[1725795495355,23.99,130.55,130.39,1.4084713]
[1725795495562,23.99,130.55,130.38,1.3583]
[1725795495863,23.99,130.55,130.39,1.4084713]
[1725795499557,23.99,130.55,130.38,1.3583]
[1725795499758,23.99,130.55,130.39,1.40838108]
[1725795500770,23.99,130.55,130.38,1.3583]
[1725795501073,23.99,130.55,130.39,1.40839215]
[1725795503573,23.99,130.55,130.38,1.3583]
[1725795503767,23.99,130.55,130.39,1.40838108]
[1725795507281,23.99,130.55,130.38,1.3583]
[1725795507473,0.28175421,130.54,130.38,1.3583]
[1725795507676,50.82373561,130.55,130.38,1.3583]
[1725795507877,0.28175422,130.54,130.38,1.3583]
[1725795508086,23.99,130.53,130.38,1.3583]
[1725795508281,2.5951,130.52,130.38,1.3583]
[1725795508482,22.99,130.51,130.38,1.3583]
[1725795509084,23.99,130.51,130.38,1.3583]
[1725795509282,27.74507857,130.51,130.38,1.3583]
[1725795516487,27.74507857,130.51,130.37,1.3761]
[1725795519589,27.74507857,130.51,130.36,1.3671]
[1725795520184,27.74507857,130.51,130.35,3.85749291]
[1725795520380,27.74507857,130.51,130.33,1.3243]
[1725795520584,27.74507857,130.51,130.34,1.40904193]
[1725795520785,27.74507857,130.51,130.34,3.86950854]
[1725795520989,27.74507857,130.51,130.33,1.3243]
[1725795521585,27.74507857,130.51,130.34,1.40903266]
[1725795522292,27.74507857,130.51,130.34,5.17925423]
[1725795522492,27.74507857,130.51,130.34,3.77022157]
[1725795522687,27.74507857,130.51,130.33,1.3243]
[1725795522892,27.74507857,130.51,130.34,1.40900803]
[1725795523192,27.74507857,130.51,130.34,5.30036737]
[1725795523489,27.74507857,130.51,130.34,3.89135934]
[1725795523691,27.74507857,130.51,130.35,1.40892727]
[1725795523892,27.74507857,130.51,130.34,3.85140488]
[1725795524093,27.74507857,130.51,130.35,1.40891002]
[1725795524285,27.74507857,130.51,130.36,2.67811002]
[1725795524483,27.74507857,130.51,130.37,1.40871089]
[1725795524687,27.74507857,130.51,130.37,2.76141089]
[1725795524888,27.74507857,130.51,130.38,2.70261089]
[1725795525087,27.74507857,130.51,130.38,1.2939]
[1725795530196,27.74507857,130.51,130.37,5.25816641]
[1725795530395,27.74507857,130.51,130.37,3.90546641]
[1725795530592,27.74507857,130.51,130.36,1.2692]
[1725795531189,27.74507857,130.51,130.36,5.18603472]
[1725795531385,27.74507857,130.51,130.36,3.91683472]
[1725795531589,27.74507857,130.51,130.33,2.6054]
[1725795531790,27.74507857,130.51,130.34,1.40885568]
[1725795531991,27.74507857,130.51,130.34,5.26474142]
[1725795532196,27.74507857,130.51,130.35,1.40885568]
[1725795532397,27.74507857,130.51,130.33,6.35778746]
[1725795532597,27.74507857,130.51,130.34,1.40885873]
[1725795532790,27.74507857,130.51,130.34,5.21299533]
[1725795532985,27.74507857,130.51,130.35,1.40885873]
[1725795533189,27.74507857,130.51,130.35,3.87466876]
[1725795533391,27.74507857,130.51,130.33,2.6054]
[1725795533691,27.74507857,130.51,130.34,1.4088586]
[1725795535501,27.74507857,130.51,130.33,6.46320237]
[1725795535795,27.74507857,130.51,130.34,1.40885039]
[1725795536701,27.74507857,130.51,130.35,1.4088588]
[1725795536902,27.74507857,130.51,130.33,6.46320237]
[1725795537102,27.74507857,130.51,130.34,1.4088588]
[1725795539699,27.74507857,130.51,130.35,1.40894206]
[1725795540002,27.74507857,130.51,130.33,6.46320237]
[1725795540204,27.74507857,130.51,130.34,1.40894192]
[1725795542296,27.74507857,130.51,130.35,1.40882404]
[1725795542495,27.74507857,130.51,130.33,10.02987112]
[1725795542496,27.74507857,130.51,130.36,1.40882404]
[1725795542703,27.74507857,130.51,130.33,10.02987112]
[1725795542902,27.74507857,130.51,130.34,6.74632981]
[1725795543204,27.74507857,130.51,130.33,10.02987112]
[1725795543205,27.74507857,130.51,130.35,1.40882404]
[1725795543396,27.74507857,130.51,130.36,1.40882404]
[1725795543591,27.74507857,130.51,130.33,6.46320237]
[1725795543797,27.74507857,130.51,130.34,1.40884433]
[1725795545096,27.74507857,130.51,130.33,3.85780237]
[1725795545097,0.28182524,130.5,130.33,3.85780237]
[1725795545297,27.74507857,130.51,130.32,1.3263]
[1725795545493,27.74507857,130.51,130.33,1.4091139]
[1725795546204,27.74507857,130.51,130.32,5.1363897]
[1725795546395,27.74507857,130.51,130.33,1.40910616]
[1725795547000,0.28186064,130.5,130.32,3.8100897]
[1725795547201,0.28186064,130.5,130.29,2.626]
[1725795547202,0.28186064,130.5,130.29,6.19266875]
[1725795547504,27.74507857,130.51,130.3,1.40923753]
[1725795547696,0.28185545,130.5,130.3,5.23707495]
[1725795547902,1.0,130.49,130.31,1.40923753]
[1725795548101,1.0,130.49,130.32,1.40923753]
[1725795548306,1.0,130.49,130.29,2.626]
[1725795548606,1.0,130.49,130.3,1.40922202]
[1725795548807,1.0,130.49,130.3,5.2980257]
[1725795549006,1.0,130.49,130.31,1.40922202]
[1725795549508,1.0,130.49,130.32,1.40922202]
[1725795549705,1.0,130.49,130.31,3.81173312]
[1725795549905,1.0,130.49,130.32,1.40925487]
[1725795550108,1.0,130.49,130.31,3.81058282]
[1725795550405,1.0,130.49,130.32,1.40925487]
[1725795550599,1.0,130.49,130.31,3.78220858]
[1725795550796,1.0,130.49,130.32,1.40925487]
[1725795550998,1.0,130.49,130.31,3.7618865]
[1725795551201,1.0,130.49,130.32,1.40925495]
[1725795551403,1.0,130.49,130.31,3.76495398]
[1725795551603,1.0,130.49,130.32,1.40925495]
[1725795551896,1.0,130.49,130.29,2.626]
[1725795552102,1.0,130.49,130.3,1.40932768]
[1725795552304,1.0,130.49,130.3,5.31385221]
[1725795552606,1.0,130.49,130.29,2.626]
[1725795552607,1.0,130.49,130.31,1.40932768]
[1725795552802,1.0,130.49,130.32,1.40925589]
[1725795553002,1.0,130.49,130.3,1.3275]
[1725795553204,1.0,130.49,130.31,1.40928053]
[1725795554205,1.0,130.49,130.3,5.09283742]
[1725795554410,1.0,130.49,130.31,1.40923799]
[1725795558313,1.0,130.49,130.32,1.40919426]
[1725795558515,1.0,130.49,130.3,5.09283742]
[1725795558715,1.0,130.49,130.31,1.40919426]
[1725795559513,1.0,130.49,130.32,1.40919426]
[1725795559714,1.0,130.49,130.3,5.09283742]
[1725795559916,1.0,130.49,130.31,1.40919426]
[1725795562311,1.0,130.49,130.3,5.09283742]
[1725795562512,1.0,130.49,130.31,1.40919426]
[1725795566419,1.0,130.49,130.32,1.40920647]
[1725795566614,1.0,130.49,130.3,5.09283742]
[1725795566815,1.0,130.49,130.31,1.40920661]
[1725795568821,0.28186853,130.48,130.3,5.09283742]
[1725795569416,1.28186853,130.47,130.3,5.09283742]
[1725795569620,2.4739,130.46,130.3,5.09283742]
[1725795570518,1.28193744,130.45,130.3,3.76533742]
[1725795570713,1.0,130.45,130.3,3.76533742]
[1725795571522,1.0,130.45,130.29,1.2996]
[1725795571920,1.0,130.45,130.3,3.91177598]
[1725795573028,1.0,130.45,130.28,1.3782]
[1725795573221,0.2819792,130.44,130.25,1.267]
[1725795573927,1.2819792,130.43,130.25,1.267]
[1725795574122,0.2819792,130.42,130.25,1.267]
[1725795574321,22.99,130.41,130.25,1.267]
[1725795574522,2.5853,130.4,130.25,1.267]
[1725795575522,1.0,130.39,130.25,1.267]
[1725795576029,22.99,130.38,130.25,1.267]
[1725795577227,1.0,130.37,130.25,1.267]
[1725795586830,1.0,130.37,130.15,3.56666875]
[1725795587030,1.0,130.37,130.17,2.6241]
[1725795587220,22.99,130.36,130.17,2.6241]
[1725795587426,1.2065,130.35,130.17,2.6241]
[1725795587631,22.99,130.34,130.17,2.6241]
[1725795588534,1.0,130.33,130.17,2.6241]
[1725795601237,1.0,130.33,130.18,1.41084085]
[1725795603244,22.99,130.34,130.18,1.41084085]
[1725795604146,22.99,130.33,130.18,1.41084085]
[1725795605138,22.99,130.34,130.19,1.41046007]
[1725795605342,22.99,130.34,130.2,1.41046007]
[1725795605542,22.99,130.34,130.21,2.72226007]
[1725795605746,22.99,130.34,130.22,4.11786007]
[1725795605949,22.99,130.34,130.22,6.57377784]
[1725795607254,3.83797682,130.36,130.22,6.57377784]
[1725795607255,22.99,130.35,130.22,6.57377784]
[1725795607647,24.3447,130.35,130.22,6.57377784]
[1725795608054,28.21069405,130.35,130.22,6.57377784]
[1725795609049,1.0,130.34,130.22,6.57377784]
[1725795617057,2.2072,130.34,130.22,6.57377784]
[1725795618651,2.2072,130.34,130.22,2.7074]
[1725795618856,2.2072,130.34,130.23,3.78502879]
[1725795619057,2.2072,130.34,130.22,2.7074]
[1725795619759,2.2072,130.34,130.22,6.57764952]
[1725795619958,2.2072,130.34,130.22,2.7074]
[1725795629767,0.28220176,130.33,130.22,2.7074]
[1725795630066,2.2072,130.34,130.22,2.7074]
[1725795630770,1.2072,130.34,130.22,2.7074]
[1725795631070,1.0,130.32,130.22,2.7074]
[1725795668300,22.99,130.31,130.22,2.7074]
[1725795669296,22.99,130.3,130.22,2.7074]
[1725795670393,1.0,130.32,130.22,2.7074]
[1725795685313,23.99,130.32,130.22,2.7074]
[1725795686212,1.0,130.32,130.22,2.7074]
[1725795688611,23.99,130.32,130.22,2.7074]
[1725795692517,1.0,130.32,130.22,2.7074]
[1725795693817,23.99,130.32,130.22,2.7074]
[1725795694923,1.0,130.32,130.22,2.7074]
[1725795695317,23.99,130.32,130.22,2.7074]
[1725795695524,50.86725927,130.32,130.22,2.7074]
[1725795695725,22.99,130.3,130.22,2.7074]
[1725795695922,49.86725927,130.3,130.22,2.7074]
[1725795696122,22.99,130.28,130.22,2.7074]
[1725795697229,22.99,130.27,130.22,2.7074]
[1725795699326,1.0,130.32,130.22,2.7074]
[1725795699529,23.99,130.32,130.22,2.7074]
[1725795701025,1.0,130.32,130.22,2.7074]
[1725795701327,23.99,130.32,130.22,2.7074]
[1725795704025,25.1964,130.32,130.22,2.7074]
[1725795709426,25.1964,130.32,130.22,1.3204]
[1725795709627,22.99,130.3,130.21,1.3118]
[1725795709828,27.59764331,130.3,130.21,1.3118]
[1725795710335,1.0,130.29,130.21,1.3118]
[1725795710532,22.99,130.28,130.21,1.3118]
[1725795710730,53.6835152,130.28,130.21,1.3118]
[1725795713738,53.6835152,130.28,130.15,2.6382]
[1725795714033,1.0,130.27,130.16,1.2846]
[1725795714223,2.2072,130.27,130.16,1.2846]
[1725795717737,22.99,130.26,130.16,5.09606281]
[1725795722843,22.99,130.26,130.16,1.2846]
[1725795723236,1.0,130.25,130.16,1.2846]
[1725795748960,3.76152427,130.27,130.16,1.2846]
[1725795749161,22.99,130.28,130.16,1.2846]
[1725795749662,26.90988184,130.28,130.16,1.2846]
[1725795754867,22.99,130.28,130.16,1.2846]
[1725795757961,164.38151578,130.29,130.16,1.2846]
[1725795773181,1.2102,130.28,130.16,1.2846]
[1725795797803,165.77121578,130.29,130.17,1.41098495]
[1725795798004,165.77121578,130.29,130.16,1.2846]
[1725795798515,165.77121578,130.29,130.17,1.41097479]
[1725795800819,165.77121578,130.29,130.16,1.2846]
[1725795801021,165.77121578,130.29,130.17,1.41098089]
[1725795805224,165.77121578,130.29,130.16,1.2846]
[1725795805517,165.77121578,130.29,130.17,1.41097243]
[1725795807015,142.71121578,130.29,130.17,1.41097243]
[1725795807212,1.3897,130.29,130.17,1.41097243]
[1725795808717,1.3897,130.29,130.16,8.9696]
[1725795808718,1.3897,130.29,130.18,1.41086525]
[1725795809018,1.3897,130.29,130.16,8.9696]
[1725795809225,1.2108,130.28,130.16,8.9696]
[1725795809421,1.2108,130.28,130.17,1.41095128]
[1725795809725,1.2108,130.28,130.16,8.9696]
[1725795810622,1.2108,130.28,130.17,1.4108592]
[1725795812218,1.3897,130.29,130.17,1.4108592]
[1725795812712,1.3897,130.29,130.16,8.9696]
[1725795812916,1.3897,130.29,130.17,1.41083307]
[1725795817630,1.3897,130.29,130.18,1.41082637]
[1725795817925,1.3897,130.29,130.16,8.9696]
[1725795818128,1.3897,130.29,130.17,1.41082637]
[1725795820727,1.3897,130.29,130.16,8.9696]
[1725795820922,23.06,130.31,130.17,1.41082399]
[1725795824034,23.06,130.31,130.18,1.41083213]
[1725795824331,23.06,130.31,130.16,8.9696]
[1725795824534,23.06,130.31,130.17,1.41082388]
[1725795824728,23.06,130.31,130.16,8.9696]
[1725795824930,23.06,130.31,130.17,1.41082388]
[1725795828737,23.06,130.31,130.16,8.9696]
[1725795828938,23.06,130.31,130.17,1.41082388]
[1725795830238,23.06,130.31,130.18,1.41082388]
[1725795830436,23.06,130.31,130.16,8.9696]
[1725795830639,23.06,130.31,130.17,1.41082172]
[1725795831333,24.2713,130.32,130.17,1.41082172]
[1725795831833,24.2713,130.32,130.17,12.66249047]
[1725795832038,24.2713,130.32,130.18,1.41082172]
[1725795832339,23.06,130.31,130.18,1.41082172]
[1725795832530,23.06,130.31,130.19,2.5988]
[1725795832726,23.06,130.31,130.2,1.41082172]
[1725795833039,23.06,130.31,130.2,1.3831]
[1725795833338,1.2113,130.32,130.2,1.3831]
[1725795838144,1.2113,130.32,130.21,1.41052851]
[1725795840547,1.2113,130.32,130.2,1.3831]
[1725795840850,1.2113,130.32,130.21,1.41035779]
[1725795841350,1.2113,130.32,130.2,1.3831]
[1725795854249,1.2113,130.32,130.21,1.41051782]
[1725795855851,1.2113,130.32,130.2,1.3831]
[1725795856050,1.2113,130.32,130.21,1.41051468]
[1725795859653,1.2113,130.32,130.2,9.0681]
[1725795859855,1.2113,130.32,130.21,1.41036544]
[1725795862363,1.2113,130.32,130.2,9.0681]
[1725795862962,1.2113,130.32,130.21,1.41047466]
[1725795863762,1.2113,130.32,130.2,9.0681]
[1725795864569,1.2113,130.32,130.21,1.41047523]
[1725795864861,1.2113,130.32,130.2,9.0681]
[1725795865062,1.2113,130.32,130.21,1.41046658]
[1725795867668,1.2113,130.32,130.2,9.0681]
[1725795867861,1.2113,130.32,130.21,1.41046658]
[1725795871864,1.2113,130.32,130.2,9.0681]
[1725795872069,1.2113,130.32,130.21,1.4104485]
[1725795875871,1.2113,130.32,130.22,1.41033988]
[1725795876074,1.2113,130.32,130.22,3.81975896]
[1725795876375,1.2113,130.32,130.23,2.6395]
[1725795876567,1.2113,130.32,130.24,1.2969]
[1725795879971,23.06,130.38,130.24,1.2969]
[1725795880172,25.5433,130.37,130.24,1.2969]
[1725795880573,29.40536631,130.37,130.24,1.2969]
[1725795880780,25.5433,130.37,130.24,1.2969]
[1725795881778,25.5673,130.43,130.25,4.97672548]
[1725795882077,29.42003578,130.43,130.26,6.75399944]
[1725795882276,29.42003578,130.43,130.27,1.41005673]
[1725795882578,29.42003578,130.43,130.24,15.84427023]
[1725795882579,29.42003578,130.43,130.28,1.41005673]
[1725795882777,29.42003578,130.43,130.29,2.74395673]
[1725795883082,29.42003578,130.43,130.3,2.6243]
[1725795883277,23.06,130.42,130.3,2.6243]
[1725795899997,23.06,130.42,130.29,1.3339]
[1725795901603,23.06,130.42,130.26,10.2736]
[1725795901809,1.0,130.41,130.26,10.2736]
[1725795902106,23.06,130.4,130.26,10.2736]
[1725795903605,23.06,130.4,130.27,1.40984109]
[1725795907508,23.06,130.4,130.26,10.2736]
[1725795907707,23.06,130.4,130.27,1.40982554]
[1725795911814,23.06,130.4,130.26,10.2736]
[1725795912017,23.06,130.4,130.27,1.40982312]
[1725795914922,1.2089,130.39,130.27,1.40982312]
[1725795915521,1.2566,130.38,130.27,1.40982312]
[1725795916023,1.2566,130.38,130.26,10.2736]
[1725795916221,1.2566,130.38,130.27,1.40982292]
[1725795920336,1.2566,130.38,130.26,10.2736]
[1725795920535,1.2566,130.38,130.27,1.40983081]
[1725795924536,1.2566,130.38,130.26,10.2736]
[1725795924745,1.18955003,130.38,130.27,1.40982292]
[1725795925240,1.18955003,130.38,130.26,10.2736]
[1725795925537,1.18955003,130.38,130.27,1.40982292]
[1725795928846,1.18955003,130.38,130.26,10.2736]
[1725795929353,1.18955003,130.38,130.26,1.279]
[1725795930049,1.18955003,130.38,130.25,8.9673]
[1725795935247,1.18955003,130.38,130.26,10.41642559]
[1725795935552,1.18955003,130.38,130.26,9.0065]
[1725795936351,1.18955003,130.38,130.26,1.3215]
[1725795940956,1.18955003,130.38,130.27,1.3808]
[1725795953464,1.18955003,130.38,130.26,1.3215]
[1725795953673,1.18955003,130.38,130.25,1.2823]
[1725795959064,1.18955003,130.38,130.25,2.6715]
[1725795964687,1.2089,130.39,130.25,2.6715]
[1725795971783,1.2089,130.39,130.25,2.63302359]
[1725795972980,23.06,130.4,130.25,2.63302359]
[1725795973183,23.06,130.4,130.26,1.40998889]
[1725795974279,23.06,130.4,130.25,2.63302359]
[1725795974479,23.06,130.4,130.26,1.40997814]
[1725795976985,23.06,130.4,130.25,2.63302359]
[1725795977185,23.06,130.4,130.26,1.40991711]
[1725795978279,23.06,130.4,130.26,9.09491711]
[1725795978593,23.06,130.4,130.27,1.40991711]
[1725795979001,23.06,130.4,130.28,1.3065]
[1725795979492,23.06,130.4,130.29,1.2853]
[1725795979994,23.06,130.4,130.3,1.3284]
[1725795980781,154.31466738,130.41,130.3,1.3284]
[1725795981192,177.37466738,130.41,130.3,1.3284]
[1725795981387,177.37466738,130.41,130.29,1.2853]
[1725795981887,154.31466738,130.41,130.29,1.2853]
[1725795982995,154.31466738,130.41,130.3,1.4096217]
[1725795984087,1.3799,130.47,130.3,1.4096217]
[1725795984282,1.3799,130.47,130.29,1.2853]
[1725795984487,1.3799,130.47,130.3,1.40933807]
[1725795984995,1.3799,130.47,130.29,1.2853]
[1725795985196,1.3799,130.47,130.3,1.40930485]
[1725795986399,1.3799,130.47,130.31,1.40932214]
[1725795986698,1.3799,130.47,130.32,1.40932214]
[1725795986881,1.3799,130.47,130.33,2.5746]
[1725795987081,1.3799,130.47,130.33,6.43494205]
[1725795987297,1.3799,130.47,130.33,2.5746]
[1725795987789,1.3799,130.47,130.33,6.46446885]
[1725795989092,1.3799,130.47,130.34,1.40914593]
[1725795989288,1.3799,130.47,130.33,6.46446885]
[1725795989488,1.3799,130.47,130.34,1.40914541]
[1725795990284,24.2695,130.48,130.34,1.40914541]
[1725795991491,24.2695,130.48,130.34,9.08414541]
[1725795991798,24.2695,130.48,130.35,10.47684541]
[1725795992097,24.2695,130.48,130.35,9.0677]
[1725795992298,24.3908,130.5,130.35,9.0677]
[1725795992803,24.3908,130.5,130.35,1.3927]
[1725795993694,23.06,130.49,130.35,1.3927]
[1725795994897,1.3308,130.5,130.35,1.3927]
[1725795999705,23.06,130.49,130.35,1.3927]
[1725795999897,1.2072,130.48,130.35,1.3927]
[1725796009016,24.2672,130.48,130.35,1.3927]
[1725796010014,1.2072,130.48,130.35,1.3927]
[1725796027336,1.2072,130.48,130.36,1.4087225]
[1725796027538,1.2072,130.48,130.38,3.56407551]
[1725796027836,1.2072,130.48,130.39,15.33869801]
[1725796028036,1.2072,130.48,130.4,1.4087225]
[1725796028244,1.2072,130.48,130.4,2.7574225]
[1725796028537,1.2072,130.48,130.41,1.4087225]
[1725796028743,1.2072,130.48,130.41,5.32454112]
[1725796028948,1.2072,130.48,130.42,1.4087225]
[1725796029140,1.2072,130.48,130.4,5.19090292]
[1725796029342,1.2072,130.48,130.41,1.40822644]
[1725796029544,1.2072,130.48,130.41,5.33669776]
[1725796029841,1.2072,130.48,130.4,1.3487]
[1725796030038,1.2072,130.48,130.41,1.4082582]
[1725796031035,1.2072,130.48,130.41,5.14829498]
[1725796031238,1.2072,130.48,130.42,1.4082582]
[1725796032546,1.2864,130.56,130.42,1.4082582]
[1725796032746,1.2069,130.55,130.42,1.4082582]
[1725796033947,1.2069,130.55,130.41,3.74003678]
[1725796034243,1.2069,130.55,130.4,1.3487]
[1725796034440,1.2069,130.55,130.41,1.40827916]
[1725796035249,1.2069,130.55,130.42,1.40819185]
[1725796035444,1.2069,130.55,130.4,5.20906453]
[1725796035644,1.2069,130.55,130.41,1.408194]
[1725796038049,1.2069,130.55,130.42,1.40815769]
[1725796038244,23.06,130.57,130.43,1.40815769]
[1725796038447,1.206,130.56,130.44,4.11255769]
[1725796038645,1.206,130.56,130.45,1.3794]
[1725796053758,1.2954,130.55,130.45,1.3794]
[1725796058555,1.2954,130.55,130.41,1.3769]
[1725796058751,1.2954,130.55,130.41,2.7582]
[1725796059159,1.0,130.54,130.41,2.7582]
[1725796059764,1.0,130.54,130.41,1.3813]
[1725796062953,1.0,130.54,130.4,3.86036453]
[1725796063158,0.28176916,130.53,130.35,1.3363]
[1725796063469,23.06,130.52,130.35,1.3363]
[1725796063661,1.2057,130.51,130.35,1.3363]
[1725796064062,1.3497,130.5,130.35,1.3363]
[1725796066456,1.0,130.49,130.35,1.3363]
[1725796092283,1.0,130.49,130.36,1.40889584]
[1725796093081,1.0,130.49,130.35,1.3363]
[1725796093383,1.0,130.49,130.36,1.40886745]
[1725796097083,1.0,130.49,130.35,1.3363]
[1725796097882,1.0,130.49,130.36,1.40884431]
[1725796101384,1.0,130.49,130.35,1.3363]
[1725796101595,1.0,130.49,130.36,1.40880346]
[1725796103380,1.0,130.49,130.35,1.3363]
[1725796106286,1.0,130.49,130.36,1.40878991]
[1725796106591,1.2057,130.51,130.37,1.4087478]
[1725796106789,23.06,130.52,130.35,1.3363]
[1725796106990,23.06,130.52,130.36,1.40874788]
[1725796109491,23.06,130.52,130.37,1.40875299]
[1725796109691,23.06,130.52,130.35,1.3363]
[1725796109995,23.06,130.52,130.36,1.40876122]
[1725796113483,23.06,130.52,130.37,1.40875257]
[1725796117291,1.0,130.51,130.37,1.40875257]
[1725796117486,23.06,130.5,130.37,1.40875257]
[1725796117687,1.2075,130.49,130.37,1.40875257]
[1725796120100,24.4468,130.5,130.37,1.40875257]
[1725796120495,24.4468,130.5,130.35,1.3363]
[1725796120794,24.4468,130.5,130.36,1.40872646]
[1725796121400,24.4468,130.5,130.35,1.3363]
[1725796121700,24.4468,130.5,130.36,1.40873468]
[1725796125404,24.4468,130.5,130.35,1.3363]
[1725796125610,24.4468,130.5,130.36,1.40876809]
[1725796127095,24.4468,130.5,130.35,1.3363]
[1725796128199,24.4468,130.5,130.36,1.40886857]
[1725796128396,24.4468,130.5,130.35,1.3363]
[1725796129302,24.4468,130.5,130.36,1.40884429]
[1725796129498,24.4468,130.5,130.35,1.3363]
[1725796132706,24.4468,130.5,130.36,1.40878711]
[1725796133703,24.4468,130.5,130.35,1.3363]
[1725796133907,24.4468,130.5,130.36,1.40881786]
[1725796135499,24.4468,130.5,130.35,1.3363]
[1725796138404,24.4468,130.5,130.36,1.40882002]
[1725796140810,24.4468,130.5,130.35,1.3363]
[1725796141216,51.28397876,130.5,130.35,1.3363]
[1725796141417,51.28397876,130.5,130.33,3.88986885]
[1725796141714,51.28397876,130.5,130.3,12.54357551]
[1725796141906,1.0,130.49,130.31,1.40913706]
[1725796142107,1.0,130.49,130.32,1.4091372]
[1725796142307,1.2079,130.48,130.32,1.4091372]
[1725796144606,1.2079,130.48,130.31,3.86674148]
[1725796144806,1.2079,130.48,130.32,1.40908701]
[1725796145009,1.2079,130.48,130.33,1.40908701]
[1725796145422,1.2079,130.48,130.3,12.54357551]
[1725796145423,1.2079,130.48,130.3,8.9795]
[1725796145614,1.2079,130.48,130.31,1.40910192]
[1725796145814,1.2079,130.48,130.31,5.26390172]
[1725796146119,1.2079,130.48,130.32,1.40910192]
[1725796146315,1.2079,130.48,130.33,1.40910192]
[1725796148714,1.2079,130.48,130.32,3.83101894]
[1725796148910,1.2079,130.48,130.33,1.40910408]
[1725796149226,1.2079,130.48,130.33,3.82574014]
[1725796149414,1.2079,130.48,130.3,8.9795]
[1725796149723,1.2079,130.48,130.31,1.40910408]
[1725796149915,1.2079,130.48,130.31,5.28201403]
[1725796150113,1.2079,130.48,130.32,1.40910408]
[1725796150319,1.2079,130.48,130.31,3.89361865]
[1725796150514,1.0,130.47,130.32,1.40917501]
[1725796150714,1.0,130.47,130.32,3.74443933]
[1725796150917,1.2653,130.46,130.3,1.3045]
[1725796151114,1.2653,130.46,130.31,1.40917459]
[1725796151421,3.7597791,130.45,130.31,5.31583205]
[1725796151618,3.7597791,130.45,130.32,1.40917459]
[1725796151823,1.2082,130.44,130.32,1.40917459]
[1725796152123,1.2082,130.44,130.3,1.3045]
[1725796152324,1.2082,130.44,130.31,1.40916994]
[1725796152526,1.2082,130.44,130.31,5.31927885]
[1725796152718,1.2082,130.44,130.3,1.3045]
[1725796153023,1.2082,130.44,130.31,1.40917036]
[1725796153228,1.2082,130.44,130.31,5.28131332]
[1725796153527,1.2082,130.44,130.32,1.40917036]
[1725796155520,1.2082,130.44,130.31,3.87214296]
[1725796155716,1.2082,130.44,130.32,1.40918584]
[1725796155924,1.2082,130.44,130.32,3.86583307]
[1725796156122,1.2082,130.44,130.3,1.3045]
[1725796156321,1.2082,130.44,130.31,1.40920522]
[1725796156518,1.2082,130.44,130.31,5.19909475]